Workbook

Sheet Sheet 01
B2: A | H2: B | N2: C | T2: D | Z2: BRAKES | AH2: A | AI2: B | AJ2: C | AK2: D | AL2: BRAKE
B3: factory | C3: LEFT | D3: RIGHT | E3: left | F3: right | G3: symet | H3: factory | I3: LEFT | J3: RIGHT | K3: left | L3: right | M3: symet. | N3: factory | O3: LEFT | P3: RIGHT | Q3: left | R3: dir. | S3: symet | T3: factory | U3: LEFT | V3: RIGHT | W3: left. | X3: right | Y3: symet | Z3: factory | AA3: LEFT | AB3: RIGHT | AC3: left. | AD3: right | AE3: symet
A4: 1 | B4: =AH4+$M$24 -> 7411 | E4: =C4-B4 -> -7411 | F4: =D4-B4 -> -7411 | G4: =C4-D4 -> 0 | H4: =AI4+$M$24 -> 7299 | K4: =I4-H4 -> -7299 | L4: =J4-H4 -> -7299 | M4: =I4-J4 -> 0 | N4: =AJ4+$M$24 -> 7395.2 | Q4: =O4-N4 -> -7395.2 | R4: =P4-N4 -> -7395.2 | S4: =O4-P4 -> 0 | T4: =AK4+$M$24 -> 7488.9 | W4: =U4-T4 -> -7488.9 | X4: =V4-T4 -> -7488.9 | Y4: =U4-V4 -> 0 | Z4: =AL4+$M$24 -> 7846 | AC4: =AA4-Z4 -> -7846 | AD4: =AB4-Z4 -> -7846 | AE4: =AA4-AB4 -> 0 | AG4: 1 | AH4: 7411 | AI4: 7299 | AJ4: 7395.2 | AK4: 7488.9 | AL4: 7846
A5: 2 | B5: =AH5+$M$24 -> 7384.75 | E5: =C5-B5 -> -7384.75 | F5: =D5-B5 -> -7384.75 | G5: =C5-D5 -> 0 | H5: =AI5+$M$24 -> 7277.55 | K5: =I5-H5 -> -7277.55 | L5: =J5-H5 -> -7277.55 | M5: 0 | N5: =AJ5+$M$24 -> 7369.2 | Q5: =O5-N5 -> -7369.2 | R5: =P5-N5 -> -7369.2 | S5: =O5-P5 -> 0 | T5: =AK5+$M$24 -> 7453 | W5: =U5-T5 -> -7453 | X5: =V5-T5 -> -7453 | Y5: =U5-V5 -> 0 | Z5: =AL5+$M$24 -> 7420.91 | AC5: =AA5-Z5 -> -7420.91 | AD5: =AB5-Z5 -> -7420.91 | AE5: =AA5-AB5 -> 0 | AG5: 2 | AH5: 7384.75 | AI5: 7277.55 | AJ5: 7369.2 | AK5: 7453 | AL5: 7420.91
A6: 3 | B6: 7377.1 | E6: -7377.1 | F6: -7377.1 | G6: 0 | H6: 7270.6 | K6: -7270.6 | L6: -7270.6 | M6: 0 | N6: 7360.4 | Q6: -7360.4 | R6: -7360.4 | S6: 0 | T6: 7449.7 | W6: -7449.7 | X6: -7449.7 | Y6: 0 | Z6: 7462.5102 | AC6: -7462.5102 | AD6: -7462.5102 | AE6: 0 | AG6: 3 | AH6: 7377.1 | AI6: 7270.6 | AJ6: 7360.4 | AK6: 7449.7 | AL6: 7462.5102
A7: 4 | B7: 7394.95 | E7: -7394.95 | F7: -7394.95 | G7: 0 | H7: 7288.2 | K7: -7288.2 | L7: -7288.2 | M7: 0 | N7: 7376.65 | Q7: -7376.65 | R7: -7376.65 | S7: 0 | T7: 7462.3 | W7: -7462.3 | X7: -7462.3 | Y7: 0 | Z7: 7293.7099 | AC7: -7293.7099 | AD7: -7293.7099 | AE7: 0 | AG7: 4 | AH7: 7394.95 | AI7: 7288.2 | AJ7: 7376.65 | AK7: 7462.3 | AL7: 7293.7099
A8: 5 | B8: 7364.5 | E8: -7364.5 | F8: -7364.5 | G8: 0 | H8: 7273.35 | K8: -7273.35 | L8: -7273.35 | M8: 0 | N8: 7351.85 | Q8: -7351.85 | R8: -7351.85 | S8: 0 | T8: 7439.1 | W8: -7439.1 | X8: -7439.1 | Y8: 0 | Z8: 7113.2098 | AC8: -7113.2098 | AD8: -7113.2098 | AE8: 0 | AG8: 5 | AH8: 7364.5 | AI8: 7273.35 | AJ8: 7351.85 | AK8: 7439.1 | AL8: 7113.2098
A9: 6 | B9: 7365.1 | E9: -7365.1 | F9: -7365.1 | G9: 0 | H9: 7275.35 | K9: -7275.35 | L9: -7275.35 | M9: 0 | N9: 7354.4 | Q9: -7354.4 | R9: -7354.4 | S9: 0 | T9: 7426.15 | W9: -7426.15 | X9: -7426.15 | Y9: 0 | Z9: 7300.81 | AC9: -7300.81 | AD9: -7300.81 | AE9: 0 | AG9: 6 | AH9: 7365.1 | AI9: 7275.35 | AJ9: 7354.4 | AK9: 7426.15 | AL9: 7300.81
A10: 7 | B10: 7357.75 | E10: -7357.75 | F10: -7357.75 | G10: 0 | H10: 7270.95 | K10: -7270.95 | L10: -7270.95 | M10: 0 | N10: 7340.35 | Q10: -7340.35 | R10: -7340.35 | S10: 0 | T10: 7409.35 | W10: -7409.35 | X10: -7409.35 | Y10: 0 | Z10: 7142.11 | AC10: -7142.11 | AD10: -7142.11 | AE10: 0 | AG10: 7 | AH10: 7357.75 | AI10: 7270.95 | AJ10: 7340.35 | AK10: 7409.35 | AL10: 7142.11
A11: 8 | B11: 7378.7 | E11: -7378.7 | F11: -7378.7 | G11: 0 | H11: 7293.55 | K11: -7293.55 | L11: -7293.55 | M11: 0 | N11: 7357.25 | Q11: -7357.25 | R11: -7357.25 | S11: 0 | T11: 7419.15 | W11: -7419.15 | X11: -7419.15 | Y11: 0 | Z11: 7024.1099 | AC11: -7024.1099 | AD11: -7024.1099 | AE11: 0 | AG11: 8 | AH11: 7378.7 | AI11: 7293.55 | AJ11: 7357.25 | AK11: 7419.15 | AL11: 7024.1099
A12: 9 | B12: 7359.25 | E12: -7359.25 | F12: -7359.25 | G12: 0 | H12: 7262.95 | K12: -7262.95 | L12: -7262.95 | M12: 0 | N12: 7311.4 | Q12: -7311.4 | R12: -7311.4 | S12: 0 | T12: 7380.05 | W12: -7380.05 | X12: -7380.05 | Y12: 0 | Z12: 7123.3102 | AC12: -7123.3102 | AD12: -7123.3102 | AE12: 0 | AG12: 9 | AH12: 7359.25 | AI12: 7262.95 | AJ12: 7311.4 | AK12: 7380.05 | AL12: 7123.3102
A13: 10 | B13: 7305.05 | E13: -7305.05 | F13: -7305.05 | G13: 0 | H13: 7217.35 | K13: -7217.35 | L13: -7217.35 | M13: 0 | N13: 7260.1 | Q13: -7260.1 | R13: -7260.1 | S13: 0 | T13: 7320.6 | W13: -7320.6 | X13: -7320.6 | Y13: 0 | AG13: 10 | AH13: 7305.05 | AI13: 7217.35 | AJ13: 7260.1 | AK13: 7320.6
A14: 11 | B14: 7210.4 | E14: -7210.4 | F14: -7210.4 | G14: 0 | H14: 7140.7 | K14: -7140.7 | L14: -7140.7 | M14: 0 | N14: 7169.65 | Q14: -7169.65 | R14: -7169.65 | S14: 0 | T14: 7230.55 | W14: -7230.55 | X14: -7230.55 | Y14: 0 | AG14: 11 | AH14: 7210.4 | AI14: 7140.7 | AJ14: 7169.65 | AK14: 7230.55
A15: 12 | B15: 7153.65 | E15: -7153.65 | F15: -7153.65 | G15: 0 | H15: 7097.3 | K15: -7097.3 | L15: -7097.3 | M15: 0 | N15: 7118.65 | Q15: -7118.65 | R15: -7118.65 | S15: 0 | T15: 7170.1 | W15: -7170.1 | X15: -7170.1 | Y15: 0 | AG15: 12 | AH15: 7153.65 | AI15: 7097.3 | AJ15: 7118.65 | AK15: 7170.1
A16: 13 | B16: 7149.7 | E16: -7149.7 | F16: -7149.7 | G16: 0 | H16: 7094.25 | K16: -7094.25 | L16: -7094.25 | M16: 0 | N16: 7103.95 | Q16: -7103.95 | R16: -7103.95 | S16: 0 | T16: 7149.95 | W16: -7149.95 | X16: -7149.95 | Y16: 0 | AG16: 13 | AH16: 7149.7 | AI16: 7094.25 | AJ16: 7103.95 | AK16: 7149.95
A17: 14 | B17: 6898.1 | E17: -6898.1 | F17: -6898.1 | G17: 0 | H17: 6844.1 | K17: -6844.1 | L17: -6844.1 | M17: 0 | N17: 6864.45 | Q17: -6864.45 | R17: -6864.45 | S17: 0 | AG17: 14 | AH17: 6898.1 | AI17: 6844.1 | AJ17: 6864.45
A18: 15 | B18: 6748.4 | E18: -6748.4 | F18: -6748.4 | G18: 0 | H18: 6761.9 | K18: -6761.9 | L18: -6761.9 | M18: 0 | AG18: 15 | AH18: 6748.4 | AI18: 6761.9
A19: 16
A20: 17
A21: 18
D23: RIGHT | H23: LEFT | M23: offset
C24: A | D24: X | E24: X | F24: X | G24: X | H24: X | I24: X | J24: AS+ | K24: 30
C25: B | D25: X | E25: X | F25: X | G25: X | H25: X | I25: X | J25: AS | K25: 22
C26: C | D26: X | E26: X | F26: X | G26: X | H26: X | I26: X | J26: DL | K26: 15
